bitfinex/quotes_BTCUSD_20250826
["timestamp","ask_amount","ask_price","bid_price","bid_amount"]
[1756238327472,3.72245706,111390.0,111380.0,0.00522001]
[1756238328753,3.72245706,111390.0,111380.0,0.00319001]
[1756238329380,3.72108706,111390.0,111380.0,0.00522001]
[1756238329793,3.72245706,111390.0,111380.0,0.00522001]
[1756238330209,3.72245218,111390.0,111380.0,0.00522001]
[1756238330847,3.72104328,111390.0,111380.0,0.00522001]
[1756238331526,3.72241328,111390.0,111380.0,0.00522001]
[1756238331738,3.72104328,111390.0,111380.0,0.00522001]
[1756238331938,3.72241328,111390.0,111380.0,0.00522001]
[1756238333524,3.72241776,111390.0,111380.0,0.00522001]
[1756238333943,3.72104776,111390.0,111380.0,0.00522001]
[1756238334372,3.70699353,111390.0,111380.0,0.00522001]
[1756238334564,3.69858969,111390.0,111380.0,0.00522001]
[1756238335053,3.70699497,111390.0,111380.0,0.00522001]
[1756238335263,3.70699612,111390.0,111380.0,0.00522001]
[1756238336493,3.70836612,111390.0,111380.0,0.00522001]
[1756238338402,3.70836612,111390.0,111380.0,0.00319001]
[1756238339022,3.70836612,111390.0,111380.0,0.00522001]
[1756238340109,3.69995969,111390.0,111380.0,0.00522001]
[1756238340330,3.70837526,111390.0,111380.0,0.00522001]
[1756238340837,3.69995969,111390.0,111380.0,0.00319001]
[1756238341047,3.70837526,111390.0,111380.0,0.00319001]
[1756238341267,3.70837526,111390.0,111380.0,1e-08]
[1756238341486,3.70837526,111390.0,111380.0,0.00319001]
[1756238341698,3.70837526,111390.0,111380.0,1e-08]
[1756238342323,3.72777168,111390.0,111380.0,1e-08]
[1756238342695,3.72640168,111390.0,111380.0,0.00522001]
[1756238342900,3.70837526,111390.0,111380.0,1e-08]
[1756238343300,3.72640301,111390.0,111380.0,0.00522001]
[1756238343726,3.72777301,111390.0,111380.0,0.00522001]
[1756238343899,3.70837526,111390.0,111380.0,0.00522001]
[1756238344105,3.52999624,111390.0,111380.0,0.00522001]
[1756238344302,0.20956033,111390.0,111380.0,0.00522001]
[1756238344503,0.54956033,111390.0,111380.0,0.00522001]
[1756238344827,0.20956033,111390.0,111380.0,0.00522001]
[1756238345172,0.20856033,111390.0,111380.0,0.00522001]
[1756238345380,0.54856033,111390.0,111380.0,0.00522001]
[1756238345587,0.54856033,111390.0,111380.0,0.00622001]
[1756238345800,0.54656033,111390.0,111380.0,0.00622001]
[1756238346226,0.54656033,111390.0,111380.0,0.00722001]
[1756238348447,0.72481935,111390.0,111380.0,0.00200001]
[1756238348665,3.78964347,111390.0,111380.0,0.00200001]
[1756238348883,3.8237582,111390.0,111380.0,0.00200001]
[1756238349104,3.73553388,111390.0,111380.0,0.00200001]
[1756238349320,3.74259908,111390.0,111380.0,0.00200001]
[1756238349829,3.74173908,111390.0,111380.0,0.00100001]
[1756238350054,3.74169908,111390.0,111380.0,1e-08]
[1756238350277,3.74455908,111390.0,111380.0,1e-08]
[1756238350506,3.76395316,111390.0,111380.0,1e-08]
[1756238350735,3.60369316,111390.0,111380.0,1e-08]
[1756238350954,3.76309316,111390.0,111380.0,1e-08]
[1756238351169,3.76409316,111390.0,111380.0,1e-08]
[1756238351378,3.74470102,111390.0,111380.0,1e-08]
[1756238351813,3.76409777,111390.0,111380.0,1e-08]
[1756238352025,3.74470102,111390.0,111380.0,1e-08]
[1756238352465,3.76410066,111390.0,111380.0,1e-08]
[1756238352903,3.74470102,111390.0,111380.0,1e-08]
[1756238353331,3.76410071,111390.0,111380.0,1e-08]
[1756238353590,3.61875503,111390.0,111380.0,1e-08]
[1756238353824,3.77815503,111390.0,111380.0,1e-08]
[1756238354040,3.77815691,111390.0,111380.0,1e-08]
[1756238354277,3.73838699,111390.0,111380.0,1e-08]
[1756238355385,3.76496554,111390.0,111380.0,1e-08]
[1756238355613,3.66147177,111390.0,111380.0,1e-08]
[1756238355827,3.83559067,111390.0,111380.0,1e-08]
[1756238356057,3.67415995,111390.0,111380.0,1e-08]
[1756238356307,3.76496554,111390.0,111380.0,1e-08]
[1756238357678,3.60556554,111390.0,111380.0,1e-08]
[1756238357887,3.76496554,111390.0,111380.0,1e-08]
[1756238358905,3.6438678,111390.0,111380.0,1e-08]
[1756238359111,3.50423274,111390.0,111380.0,1e-08]
[1756238359293,3.81998042,111390.0,111380.0,1e-08]
[1756238360131,3.82246042,111390.0,111380.0,1e-08]
[1756238364240,3.80840445,111390.0,111380.0,1e-08]
[1756238364446,3.82245788,111390.0,111380.0,0.00319001]
[1756238364651,3.82245788,111390.0,111380.0,1e-08]
[1756238365133,3.82331788,111390.0,111380.0,1e-08]
[1756238365326,3.89724959,111390.0,111380.0,1e-08]
[1756238365728,3.87384118,111390.0,111380.0,1e-08]
[1756238366803,4.04756417,111390.0,111380.0,1e-08]
[1756238367223,4.1181893,111390.0,111380.0,1e-08]
[1756238367459,4.09724959,111390.0,111380.0,1e-08]
[1756238367682,0.53704672,111360.0,111350.0,0.00319]
[1756238367890,3.73687272,111360.0,111350.0,0.00319]
[1756238368076,3.73687272,111360.0,111350.0,0.0053]
[1756238368544,3.76388972,111360.0,111350.0,0.0053]
[1756238369003,3.76388972,111360.0,111350.0,0.00544298]
[1756238369250,0.5466147,111360.0,111350.0,0.00544298]
[1756238369738,0.5466147,111360.0,111350.0,0.0780877]
[1756238370223,0.7086947,111360.0,111350.0,0.0780877]
[1756238370455,0.5466147,111360.0,111350.0,0.0780877]
[1756238370688,0.7086947,111360.0,111350.0,0.0780877]
[1756238371384,0.5466147,111360.0,111350.0,0.0780877]
[1756238371891,0.7087347,111360.0,111350.0,0.0780877]
[1756238372127,0.7087347,111360.0,111350.0,0.00544298]
[1756238373440,0.72755372,111360.0,111350.0,0.00014298]
[1756238373875,3.76525972,111360.0,111350.0,0.00333298]
[1756238374104,3.76525972,111360.0,111350.0,0.00544298]
[1756238374322,3.76388972,111360.0,111350.0,0.00544298]
[1756238376673,3.76525972,111360.0,111350.0,0.00544298]
[1756238376817,3.60176972,111360.0,111350.0,0.00544298]
[1756238377030,0.7109347,111360.0,111350.0,0.00544298]
[1756238377239,0.5466147,111360.0,111350.0,0.00544298]
[1756238377442,0.7108947,111360.0,111350.0,0.00544298]
[1756238378891,0.5466147,111360.0,111350.0,0.00544298]
[1756238379122,0.7108947,111360.0,111350.0,0.00544298]
[1756238380384,0.5466147,111360.0,111350.0,0.00544298]
[1756238380593,0.5466147,111360.0,111350.0,0.18505681]
[1756238380799,0.2066147,111360.0,111350.0,0.27090675]
[1756238381011,0.2066147,111360.0,111350.0,0.09129292]
[1756238381233,0.1795977,111360.0,111350.0,0.00644298]
[1756238381655,0.2066077,111360.0,111350.0,0.00744298]
[1756238381858,0.2066077,111360.0,111350.0,0.18505681]
[1756238382067,0.2066077,111360.0,111350.0,0.00744298]
[1756238382332,0.2066077,111360.0,111350.0,0.01268815]
[1756238382659,0.2066077,111360.0,111350.0,0.19230198]
[1756238382869,0.2066077,111360.0,111350.0,0.19005681]
[1756238383963,0.02701,111360.0,111350.0,0.19005681]
[1756238384147,0.17959607,111370.0,111350.0,0.19005681]
[1756238384368,0.51959607,111370.0,111360.0,0.00316]
[1756238384806,0.51959607,111370.0,111360.0,0.00524]
[1756238385021,0.54660707,111370.0,111360.0,0.00524]
[1756238385523,0.54660707,111370.0,111330.0,0.45252264]
[1756238385524,0.1796173,111350.0,111330.0,0.38953436]
[1756238385737,0.1796173,111350.0,111340.0,0.18170996]
[1756238386367,0.1796173,111350.0,111340.0,0.00208]
[1756238386581,0.1796173,111350.0,111340.0,0.18170996]
[1756238386811,0.1796173,111350.0,111340.0,0.00208]
[1756238387026,0.1796173,111350.0,111340.0,0.16628]
[1756238387249,0.1796173,111350.0,111340.0,0.00208]
[1756238387492,0.1796173,111350.0,111340.0,0.00524]
[1756238388194,0.1816973,111350.0,111340.0,0.00724]
[1756238388659,0.1816973,111350.0,111340.0,0.01224]
[1756238388892,0.1816973,111350.0,111340.0,0.00908]
[1756238389158,0.1816973,111350.0,111340.0,0.00524]
[1756238389624,0.1816973,111350.0,111340.0,0.00508]
[1756238390056,0.5248273,111350.0,111340.0,0.00508]
[1756238390520,0.5216973,111350.0,111340.0,0.00608]
[1756238390992,0.5248273,111350.0,111340.0,0.004]
[1756238391145,0.5487113,111350.0,111340.0,0.00608]
[1756238391978,0.5466313,111350.0,111340.0,0.00924]
[1756238392378,0.5466313,111350.0,111340.0,0.18886996]
[1756238393037,0.5466313,111350.0,111340.0,0.00924]
[1756238393375,0.5466313,111350.0,111340.0,0.18886996]
[1756238393757,0.5466313,111350.0,111340.0,0.00924]
[1756238393998,0.54662783,111350.0,111340.0,0.18886996]
[1756238394210,0.54662783,111350.0,111340.0,0.20775858]
[1756238394396,0.54662783,111350.0,111340.0,0.18886996]
[1756238394397,0.20662783,111350.0,111340.0,0.18886996]
[1756238395276,0.027014,111350.0,111340.0,0.18886996]
[1756238395543,0.1795977,111360.0,111350.0,0.17961383]
[1756238395722,0.5466077,111360.0,111350.0,0.34877383]
[1756238396391,0.2066077,111360.0,111350.0,0.34877383]
[1756238396603,0.2066077,111360.0,111350.0,0.18485383]
[1756238396830,0.2066077,111360.0,111350.0,0.06528838]
[1756238397063,0.2066077,111360.0,111350.0,0.06728838]
[1756238397284,0.2086877,111360.0,111350.0,0.00408]
[1756238397502,0.2086877,111360.0,111350.0,0.002]
[1756238397503,0.2118177,111360.0,111350.0,0.002]
[1756238399259,0.1848077,111360.0,111350.0,0.002]
[1756238399896,0.5248077,111360.0,111350.0,0.002]
[1756238400333,0.6886477,111360.0,111350.0,0.002]
[1756238400768,0.70609672,111360.0,111350.0,0.002]
[1756238401854,0.54225672,111360.0,111350.0,0.002]
[1756238407882,0.53912672,111360.0,111350.0,0.11279203]
[1756238408101,0.53912672,111360.0,111350.0,0.22770593]
[1756238408330,0.54228672,111360.0,111350.0,0.25836746]
[1756238408544,0.54228672,111360.0,111350.0,0.25635746]
[1756238409907,0.56930172,111360.0,111350.0,0.25635746]
[1756238410861,0.73270172,111360.0,111350.0,0.25635746]
[1756238411080,0.7411215,111360.0,111350.0,0.25635746]
[1756238412144,0.7411215,111360.0,111350.0,0.25435746]
[1756238412366,3.7788275,111360.0,111350.0,0.25435746]
[1756238412792,3.7788275,111360.0,111350.0,0.25535746]
[1756238413507,3.79822594,111360.0,111350.0,0.25535746]
[1756238415969,3.7788275,111360.0,111350.0,0.25535746]
[1756238417173,3.79822768,111360.0,111350.0,0.25535746]
[1756238417385,3.79822863,111360.0,111350.0,0.25535746]
[1756238418755,3.79822949,111360.0,111350.0,0.25535746]
[1756238420515,0.53707898,111340.0,111330.0,0.16328755]
[1756238420732,0.53707898,111340.0,111330.0,4.755e-05]
[1756238420986,0.54221898,111340.0,111330.0,4.755e-05]
[1756238421693,0.70529898,111340.0,111330.0,4.755e-05]
[1756238421921,3.7784455,111340.0,111330.0,0.00204755]
[1756238423063,3.6153655,111340.0,111330.0,0.00204755]
[1756238423298,3.79763686,111340.0,111330.0,4.755e-05]
[1756238423546,3.7782455,111340.0,111330.0,0.00104755]
[1756238425935,3.7782455,111340.0,111330.0,1e-08]
[1756238426213,3.79762365,111340.0,111330.0,1e-08]
[1756238426426,3.8039311,111340.0,111330.0,1e-08]
[1756238428642,3.80391542,111340.0,111330.0,1e-08]
[1756238429109,3.80395542,111340.0,111330.0,1e-08]
[1756238430060,3.63473058,111340.0,111330.0,1e-08]
[1756238430286,3.79765058,111340.0,111330.0,1e-08]
[1756238430510,3.79763982,111340.0,111330.0,1e-08]
[1756238430738,3.79747982,111340.0,111330.0,1e-08]
[1756238432481,3.63471982,111340.0,111330.0,1e-08]
[1756238432686,3.79739982,111340.0,111330.0,1e-08]
[1756238433100,3.61776986,111340.0,111330.0,1e-08]
[1756238433308,3.79739982,111340.0,111330.0,1e-08]
[1756238435221,3.78899337,111340.0,111330.0,1e-08]
[1756238435448,3.80369832,111340.0,111330.0,1e-08]
[1756238435892,0.51967837,111310.0,111300.0,0.00319]
[1756238436101,0.68251837,111310.0,111300.0,0.00331825]
[1756238436361,0.68251837,111310.0,111300.0,0.00532825]
[1756238436576,0.69996739,111310.0,111300.0,0.00532825]
[1756238437013,0.70193739,111310.0,111300.0,0.00532825]
[1756238437234,0.72896339,111310.0,111300.0,0.00532825]
[1756238437695,0.72896339,111310.0,111300.0,0.00732825]
[1756238437906,0.72896339,111310.0,111300.0,0.00932825]
[1756238438120,0.73815953,111310.0,111300.0,0.00932825]
[1756238439585,0.73815953,111310.0,111300.0,0.00613825]
[1756238440449,0.73815953,111310.0,111300.0,0.00413825]
[1756238440671,0.73815953,111310.0,111300.0,0.00213825]
[1756238440892,0.73815953,111310.0,111300.0,0.00313825]
[1756238441117,0.57531953,111310.0,111300.0,0.00212825]
[1756238441340,0.74097953,111310.0,111300.0,0.00212825]
[1756238441598,0.76034213,111310.0,111300.0,0.00212825]
[1756238441826,0.76014213,111310.0,111300.0,0.00212825]
[1756238442271,0.76010213,111310.0,111300.0,0.00212825]
[1756238442495,0.59778213,111310.0,111300.0,0.00212825]
[1756238442755,0.76002213,111310.0,111300.0,0.00212825]
[1756238443657,0.77408415,111310.0,111300.0,0.00212825]
[1756238444106,0.60677415,111310.0,111300.0,0.00727825]
[1756238444333,0.75491213,111310.0,111300.0,0.00727825]
[1756238444538,0.75688213,111310.0,111300.0,0.00727825]
[1756238444751,3.79458813,111310.0,111300.0,0.00727825]
[1756238445658,3.79434813,111310.0,111300.0,0.00727825]
[1756238445875,3.79434813,111310.0,111300.0,0.00420825]
[1756238446610,3.63238813,111310.0,111300.0,0.00420825]
[1756238446840,3.77689911,111310.0,111300.0,0.00420825]
[1756238447057,3.79434813,111310.0,111300.0,0.00420825]
[1756238447710,3.79744813,111310.0,111300.0,0.00212825]
[1756238448156,0.17974296,111270.0,111260.0,0.0004]
[1756238448381,0.17974296,111270.0,111260.0,0.00087599]
[1756238448601,0.17974296,111270.0,111260.0,0.00295599]
[1756238448820,0.17974296,111270.0,111260.0,0.00602599]
[1756238450281,0.17974296,111270.0,111260.0,0.00702599]
[1756238450694,0.17974296,111270.0,111260.0,0.00495599]
[1756238450904,0.18171296,111270.0,111260.0,0.00802599]
[1756238451311,0.18171296,111270.0,111260.0,0.00495599]
[1756238451516,0.18171296,111270.0,111260.0,0.00802599]
[1756238452133,0.17974296,111270.0,111260.0,0.00802599]
[1756238452584,0.52171296,111270.0,111260.0,0.00802599]
[1756238453022,0.54109291,111270.0,111260.0,0.00802599]
[1756238453227,0.54109291,111270.0,111260.0,0.00495599]
[1756238454336,0.56812891,111270.0,111260.0,0.00495599]
[1756238455531,0.57122891,111270.0,111260.0,0.00495599]
[1756238455787,0.57122891,111270.0,111260.0,0.00287599]
[1756238459427,3.65059316,111270.0,111260.0,0.00287599]
[1756238460087,3.65059316,111270.0,111260.0,0.00187599]
[1756238460510,3.65159316,111270.0,111260.0,0.00087599]
[1756238460760,3.65359316,111270.0,111260.0,0.00087599]
[1756238461224,3.75504155,111270.0,111260.0,0.00087599]
[1756238461645,3.76910955,111270.0,111260.0,0.00087599]
[1756238462568,3.92998955,111270.0,111260.0,0.00087599]
[1756238463239,3.91592155,111270.0,111260.0,1e-08]
[1756238463478,3.89800973,111270.0,111260.0,1e-08]
[1756238463733,3.94650231,111270.0,111260.0,1e-08]
[1756238464169,3.89800973,111270.0,111260.0,1e-08]
[1756238464652,3.94650231,111270.0,111260.0,1e-08]
[1756238466477,3.96057071,111270.0,111260.0,1e-08]
[1756238467555,3.92313775,111270.0,111260.0,1e-08]
[1756238467777,3.92943533,111270.0,111260.0,1e-08]
[1756238467998,3.99409222,111270.0,111260.0,1e-08]
[1756238468224,0.53724046,111240.0,111230.0,0.0004]
[1756238468440,0.53724046,111240.0,111230.0,0.00044754]
[1756238468441,3.75500641,111240.0,111230.0,0.00044754]
[1756238468670,3.78117192,111240.0,111230.0,0.00044754]
[1756238468885,3.78772192,111240.0,111230.0,0.00044754]
[1756238469112,3.92901105,111240.0,111230.0,0.00044754]
[1756238469348,0.19725662,111230.0,111220.0,0.0004]
[1756238469565,0.19725662,111230.0,111220.0,0.00048549]
[1756238469566,0.40141009,111230.0,111220.0,0.00048549]
[1756238469774,3.44403609,111230.0,111220.0,0.00048549]
[1756238470691,3.47628343,111230.0,111220.0,0.00048549]
[1756238470910,3.49035599,111230.0,111220.0,0.00048549]
[1756238471131,3.32975599,111230.0,111220.0,0.00248549]
[1756238471359,3.49031599,111230.0,111220.0,0.00248549]
[1756238471774,3.43424572,111230.0,111220.0,0.00248549]
[1756238472362,3.43524572,111230.0,111220.0,0.00248549]
[1756238472911,3.43134572,111230.0,111220.0,0.00252549]
[1756238473129,3.43528572,111230.0,111220.0,0.00048549]
[1756238473348,3.43628572,111230.0,111220.0,0.00048549]
[1756238474156,3.46853306,111230.0,111220.0,0.00048549]
[1756238474373,3.43628572,111230.0,111220.0,0.00048549]
[1756238474576,3.46853306,111230.0,111220.0,0.00048549]
[1756238474790,3.30793306,111230.0,111220.0,0.00048549]
[1756238475011,3.46853306,111230.0,111220.0,0.00048549]
[1756238475454,3.47805692,111230.0,111220.0,0.00048549]
[1756238476552,3.4538834,111230.0,111220.0,0.00048549]
[1756238478115,3.4574934,111230.0,111220.0,0.00048549]
[1756238479590,3.50586442,111230.0,111220.0,0.00048549]
[1756238481618,3.51216189,111230.0,111220.0,0.00048549]
[1756238481845,3.47991455,111230.0,111220.0,0.00048549]
[1756238482072,3.84619156,111230.0,111220.0,0.00048549]
[1756238482319,3.79782054,111230.0,111220.0,0.00048549]
[1756238483181,3.77154353,111230.0,111220.0,0.00048549]
[1756238483842,3.83620031,111230.0,111220.0,0.00048549]
[1756238485146,3.83620031,111230.0,111220.0,1e-08]
[1756238485587,3.83620031,111230.0,111210.0,0.0004]
[1756238485588,0.17982377,111220.0,111210.0,0.0004]
[1756238485807,3.46964783,111220.0,111210.0,0.0004]
[1756238486036,3.47456783,111220.0,111210.0,0.0004]
[1756238486279,3.31396783,111220.0,111210.0,0.0004]
[1756238486498,3.47456783,111220.0,111210.0,0.0004]
[1756238487160,3.47817783,111220.0,111210.0,0.0004]
[1756238487640,3.42978621,111220.0,111210.0,0.0004]
[1756238487856,3.76978621,111220.0,111210.0,0.0004]
[1756238488076,3.76348874,111220.0,111210.0,0.0004]
[1756238488298,3.60919308,111220.0,111210.0,0.0004]
[1756238488515,3.76979308,111220.0,111210.0,0.0004]
[1756238488964,3.83445149,111220.0,111210.0,0.0004]
[1756238489634,3.67385149,111220.0,111210.0,0.0004]
[1756238489849,3.84852624,111220.0,111210.0,0.0004]
[1756238490925,3.68792624,111220.0,111210.0,0.0004]
[1756238491144,3.84852624,111220.0,111210.0,0.0004]
[1756238491791,3.84852807,111220.0,111210.0,0.0004]
[1756238494249,3.83445332,111220.0,111210.0,0.0004]
[1756238495344,0.17983994,111210.0,111200.0,0.00361]
[1756238495559,3.42128271,111210.0,111200.0,0.00361]
[1756238495770,3.42128271,111210.0,111200.0,0.00565]
[1756238496027,3.49540271,111210.0,111200.0,0.00244]
[1756238496250,3.49901271,111210.0,111200.0,0.00244]
[1756238496387,3.49607271,111210.0,111200.0,0.00244]
[1756238496613,3.56072949,111210.0,111200.0,0.00444]
[1756238496800,3.56072949,111210.0,111200.0,0.00244]
[1756238497004,3.56172949,111210.0,111200.0,0.00244]
[1756238497460,3.40112949,111210.0,111200.0,0.00244]
[1756238497664,3.40112949,111210.0,111200.0,0.00344]
[1756238497665,3.56172949,111210.0,111200.0,0.00344]
[1756238498088,3.56172949,111210.0,111200.0,0.00244]
[1756238498512,3.56274452,111210.0,111200.0,0.00244]
[1756238498725,3.60631711,111210.0,111200.0,0.00244]
[1756238498935,3.94631711,111210.0,111200.0,0.0004]
[1756238500770,0.17985611,111200.0,111190.0,0.00361]
[1756238501012,3.45238247,111200.0,111190.0,0.00361]
[1756238501237,3.45238247,111200.0,111190.0,0.00566]
[1756238501446,3.29543247,111200.0,111190.0,0.00566]
[1756238501698,3.45599247,111200.0,111190.0,0.00566]
[1756238502338,3.47006855,111200.0,111190.0,0.00566]
[1756238502542,3.4843853,111200.0,111190.0,0.00566]
[1756238502752,3.47006855,111200.0,111190.0,0.00566]
[1756238503407,3.48751757,111200.0,111190.0,0.00566]
[1756238504943,3.48951757,111200.0,111190.0,0.00566]
[1756238505182,3.48951757,111200.0,111190.0,0.0004]
[1756238505389,3.49272757,111200.0,111190.0,0.0004]
[1756238506448,3.83272757,111200.0,111190.0,0.0004]
[1756238507092,3.81865149,111200.0,111190.0,0.0004]
[1756238507429,3.77009391,111200.0,111190.0,0.0004]
[1756238507645,3.81864635,111200.0,111190.0,0.0004]
[1756238508561,3.81864503,111200.0,111190.0,0.0004]
[1756238510524,3.83272236,111200.0,111190.0,0.0004]
[1756238510881,3.83276395,111200.0,111190.0,0.0004]
[1756238511206,3.83272395,111200.0,111190.0,0.00245]
[1756238511404,3.82751395,111200.0,111190.0,0.0055]
[1756238511618,3.82951395,111200.0,111190.0,0.0055]
[1756238512328,3.82951395,111200.0,111190.0,0.00245]
[1756238512537,3.86188538,111200.0,111190.0,0.00245]
[1756238512714,3.86509538,111200.0,111190.0,0.00245]
[1756238512993,3.86509538,111200.0,111190.0,0.0004]
[1756238513262,3.87941213,111200.0,111190.0,0.0004]
[1756238513475,3.80001896,111200.0,111190.0,0.0004]
[1756238513881,3.80001896,111200.0,111190.0,1e-08]
[1756238514090,3.82629597,111200.0,111190.0,1e-08]
[1756238514298,3.81221864,111200.0,111190.0,1e-08]
[1756238514516,3.84459007,111200.0,111190.0,1e-08]
[1756238514720,3.65779306,111200.0,111190.0,1e-08]
[1756238514921,3.81827306,111200.0,111190.0,1e-08]
[1756238515550,3.78590163,111200.0,111190.0,1e-08]
[1756238515773,3.81827306,111200.0,111190.0,1e-08]
[1756238515987,3.82127306,111200.0,111190.0,1e-08]
[1756238516427,3.78890163,111200.0,111190.0,1e-08]
[1756238516832,3.79090163,111200.0,111190.0,1e-08]
[1756238517485,0.53732131,111190.0,111180.0,1e-08]
[1756238517692,3.80947532,111190.0,111180.0,1e-08]
[1756238517880,3.81147532,111190.0,111180.0,1e-08]
[1756238518054,3.81468532,111190.0,111180.0,1e-08]
[1756238518531,3.77599238,111190.0,111180.0,1e-08]
[1756238518669,3.78231507,111190.0,111180.0,1e-08]
[1756238519833,3.78331507,111190.0,111180.0,1e-08]
[1756238520440,3.81059208,111190.0,111180.0,1e-08]
[1756238520878,3.78431507,111190.0,111180.0,1e-08]
[1756238521138,3.60967605,111190.0,111180.0,0.00510001]
[1756238521365,3.39737152,111190.0,111180.0,0.00510001]
[1756238521597,3.39104883,111190.0,111180.0,0.00510001]
[1756238521809,3.23056883,111190.0,111180.0,0.00510001]
[1756238522057,3.39104883,111190.0,111180.0,0.00510001]
[1756238522509,3.73104883,111190.0,111180.0,0.00510001]
[1756238522763,3.74849785,111190.0,111180.0,0.00510001]
[1756238524144,3.74845785,111190.0,111180.0,0.00510001]
[1756238527122,4.18795785,111190.0,111180.0,0.00510001]
[1756238528412,4.16853631,111190.0,111180.0,0.00510001]
[1756238529416,4.19559331,111190.0,111180.0,0.00510001]
[1756238530842,0.54892929,111190.0,111180.0,0.00510001]
[1756238531084,0.20892929,111190.0,111180.0,0.00510001]
[1756238531294,0.54892929,111190.0,111180.0,0.00510001]
[1756238531706,0.54892929,111190.0,111180.0,0.18498847]
[1756238531955,0.54892929,111190.0,111180.0,0.27089898]
[1756238532161,0.54892929,111190.0,111180.0,0.09101052]
[1756238532386,0.54892929,111190.0,111180.0,0.09325912]
[1756238532817,0.54892929,111190.0,111180.0,0.27314758]
[1756238533116,0.54892929,111190.0,111180.0,0.27089898]
[1756238533462,0.54792929,111190.0,111180.0,0.27089898]
[1756238533879,0.54792929,111190.0,111180.0,0.09101052]
[1756238534126,0.54792929,111190.0,111180.0,0.00734861]
[1756238534334,0.54792929,111190.0,111180.0,0.18723707]
[1756238534538,0.54792929,111190.0,111180.0,0.18498847]
[1756238535367,0.54792929,111190.0,111180.0,0.00510001]
[1756238535509,0.54692929,111190.0,111180.0,0.00734861]
[1756238537865,0.54692929,111190.0,111180.0,0.18723707]
[1756238538077,0.027057,111190.0,111180.0,0.23785856]
[1756238538286,0.027057,111190.0,111180.0,0.73167137]
[1756238538694,0.19393209,111200.0,111190.0,0.17987229]
[1756238539152,0.19393209,111200.0,111190.0,0.18720069]
[1756238539337,0.17985611,111200.0,111190.0,0.18495229]
[1756238539578,0.17985611,111200.0,111190.0,0.22682337]
[1756238540210,0.55588193,111210.0,111190.0,0.22682337]
[1756238540432,0.17985611,111200.0,111190.0,0.22682337]
[1756238540648,0.17985611,111200.0,111190.0,0.22386337]
[1756238540870,0.17985611,111200.0,111190.0,0.38438337]
[1756238541321,0.17985611,111200.0,111190.0,0.38734337]
[1756238541758,0.17985611,111200.0,111190.0,0.34547229]
[1756238541927,0.17985611,111200.0,111190.0,0.00508]
[1756238542412,0.17985611,111200.0,111190.0,0.18495229]
[1756238543156,0.17985611,111200.0,111190.0,0.00508]
[1756238543723,0.17985611,111200.0,111190.0,0.16548]
[1756238544596,0.17985611,111200.0,111190.0,0.19901044]
[1756238545625,0.18188611,111200.0,111190.0,0.19901044]
[1756238547446,0.17985611,111200.0,111190.0,0.19901044]
[1756238550018,0.17985611,111200.0,111190.0,0.37888273]
[1756238550245,0.17985611,111200.0,111190.0,0.19901044]
[1756238550786,0.18188611,111200.0,111190.0,0.16544]
[1756238551419,0.18188611,111200.0,111190.0,0.00212]
[1756238551628,0.18502611,111200.0,111190.0,0.16036]
[1756238552054,0.17987229,111190.0,111180.0,0.07216001]
[1756238552274,0.18190229,111190.0,111180.0,0.25692639]
[1756238552986,0.17987229,111190.0,111180.0,0.43977485]
[1756238553399,0.18892574,111190.0,111180.0,0.43977485]
[1756238553613,0.18892574,111190.0,111180.0,0.44177485]
[1756238554480,0.18892574,111190.0,111180.0,0.44277485]
[1756238556097,0.00905345,111190.0,111180.0,0.44277485]
[1756238556529,0.17985611,111200.0,111180.0,0.44277485]
[1756238556748,0.17985611,111200.0,111190.0,0.18212069]
[1756238556963,0.18884193,111200.0,111190.0,0.18508069]
[1756238557198,0.00898582,111200.0,111190.0,0.18481229]
[1756238557416,0.18884193,111200.0,111190.0,0.18481229]
[1756238557656,0.17985611,111200.0,111190.0,0.18481229]
[1756238557876,0.17985611,111200.0,111190.0,0.27625758]
[1756238558116,0.55588193,111210.0,111190.0,0.27625758]
[1756238558351,0.55588193,111210.0,111200.0,0.1626082]
[1756238558577,0.55800193,111210.0,111200.0,0.1645882]
[1756238558716,0.56107193,111210.0,111200.0,0.1645882]
[1756238559346,0.56107193,111210.0,111200.0,0.1626082]
[1756238559755,0.56107193,111210.0,111200.0,0.16036]
[1756238560118,0.57041508,111210.0,111200.0,0.16036]
[1756238560526,0.57141508,111210.0,111200.0,0.16036]
[1756238560727,0.57241508,111210.0,111200.0,0.16036]
[1756238560937,0.57241508,111210.0,111200.0,0.20382376]
[1756238561149,0.57241508,111210.0,111200.0,0.16036]
[1756238564350,0.56934508,111210.0,111200.0,0.16541]
[1756238565826,0.56934508,111210.0,111200.0,0.1676582]
[1756238566560,0.57241508,111210.0,111200.0,0.1645882]
[1756238566986,0.57241508,111210.0,111200.0,0.16036]
[1756238569386,0.57241508,111210.0,111200.0,0.16234]
[1756238569621,0.57241508,111210.0,111200.0,0.16036]
[1756238571676,0.22344986,111210.0,111200.0,0.176703]
[1756238572130,0.23244185,111210.0,111200.0,0.176703]
[1756238573898,0.17987229,111190.0,111180.0,0.07227001]
[1756238574151,0.17987229,111190.0,111180.0,0.23453001]
[1756238574388,0.17987229,111190.0,111180.0,0.41441847]
[1756238574860,0.17985611,111200.0,111190.0,0.17987229]
[1756238575093,0.03639315,111210.0,111200.0,0.17985611]
[1756238575327,0.17905023,111230.0,111210.0,0.17982406]
[1756238575328,0.00932911,111220.0,111210.0,0.17982406]
[1756238575560,0.00932911,111220.0,111210.0,0.25123205]
[1756238575810,0.16511749,111230.0,111220.0,0.00198]
[1756238576051,0.16511749,111230.0,111220.0,0.16450779]
[1756238576052,0.16723749,111230.0,111220.0,0.16450779]
[1756238576265,0.16723749,111230.0,111220.0,0.16757779]
[1756238576696,0.16723749,111230.0,111220.0,0.16533]
[1756238577135,0.16723749,111230.0,111220.0,0.16757779]
[1756238577840,0.16723749,111230.0,111220.0,0.00198]
[1756238578045,0.17130759,111230.0,111220.0,0.16028]
[1756238578523,0.16723749,111230.0,111220.0,0.16450779]
[1756238578739,0.1744512,111230.0,111220.0,0.20881274]
[1756238578951,0.1765712,111230.0,111220.0,0.20656495]
[1756238579374,0.1806413,111230.0,111220.0,0.20151495]
[1756238580417,0.1796412,111230.0,111220.0,0.20345495]
[1756238580845,0.1806413,111230.0,111220.0,0.20345495]
[1756238581057,0.1796412,111230.0,111220.0,0.20345495]
[1756238581485,0.1806413,111230.0,111220.0,0.20147495]
[1756238582126,0.1796412,111230.0,111220.0,0.20147495]
[1756238582547,0.1796412,111230.0,111220.0,0.20345495]
[1756238582937,0.1796412,111230.0,111220.0,0.16222]
[1756238583815,0.1806413,111230.0,111220.0,0.16222]
[1756238584256,0.1806413,111230.0,111220.0,0.1602]
[1756238584688,0.1765712,111230.0,111220.0,0.16218]
[1756238584900,0.1765712,111230.0,111220.0,0.16749779]
[1756238585111,0.16546082,111230.0,111220.0,0.38897125]